bitfinex/quotes_BTCUSD_20251113
["timestamp","ask_amount","ask_price","bid_price","bid_amount"]
[1762996265745,0.20536131,102260.0,102250.0,0.09032874]
[1762996265953,0.01817866,102260.0,102250.0,0.28592776]
[1762996266403,0.01891995,102260.0,102250.0,0.97353336]
[1762996266615,0.01891995,102260.0,102250.0,0.32301776]
[1762996266828,0.23449984,102260.0,102250.0,0.32301776]
[1762996267041,0.01891995,102260.0,102250.0,0.32401776]
[1762996267263,0.03891995,102260.0,102250.0,0.32301776]
[1762996267477,0.01891995,102260.0,102250.0,0.87785948]
[1762996268031,0.01891995,102260.0,102250.0,0.87985948]
[1762996268461,0.01891995,102260.0,102250.0,0.88185948]
[1762996268665,0.21449984,102260.0,102250.0,0.16927726]
[1762996268888,0.03891995,102260.0,102250.0,0.32701776]
[1762996269090,0.01891995,102260.0,102250.0,0.84400096]
[1762996269734,0.01891995,102260.0,102250.0,1.16500096]
[1762996269912,0.01891995,102260.0,102250.0,1.16300096]
[1762996270113,0.00074129,102260.0,102250.0,1.25313706]
[1762996270290,0.00074129,102260.0,102250.0,1.25413706]
[1762996270695,0.00074129,102260.0,102250.0,0.73715386]
[1762996270915,0.00074129,102260.0,102250.0,0.64801776]
[1762996271286,0.00074129,102260.0,102250.0,0.65301776]
[1762996271513,0.21453877,102260.0,102250.0,0.65101776]
[1762996272048,0.01895888,102260.0,102250.0,0.45041874]
[1762996272242,0.03895888,102260.0,102250.0,0.64601776]
[1762996272467,0.23453877,102260.0,102250.0,0.64801776]
[1762996272794,0.23453877,102260.0,102250.0,0.74643811]
[1762996273179,0.23453877,102260.0,102250.0,0.45341874]
[1762996273386,0.23453877,102260.0,102250.0,0.04991]
[1762996273590,0.23453877,102260.0,102250.0,0.28259902]
[1762996273800,0.23453877,102260.0,102250.0,0.087]
[1762996274004,0.23453877,102260.0,102250.0,0.04991]
[1762996274200,0.26171877,102260.0,102250.0,0.02322]
[1762996274562,0.26171877,102260.0,102250.0,0.003]
[1762996274771,0.77870197,102260.0,102250.0,0.003]
[1762996274983,0.81753197,102260.0,102250.0,0.003]
[1762996275188,2.81753197,102260.0,102250.0,0.003]
[1762996275796,3.16800614,102260.0,102250.0,0.003]
[1762996275993,3.14053197,102260.0,102250.0,0.002]
[1762996276219,0.02,102230.0,102220.0,0.30621144]
[1762996276430,0.03821759,102230.0,102220.0,0.30621144]
[1762996276631,0.03821759,102230.0,102220.0,0.33290144]
[1762996276832,0.23385487,102230.0,102220.0,0.32311862]
[1762996277089,0.03821759,102230.0,102220.0,0.32311862]
[1762996277283,0.03821759,102230.0,102220.0,0.32312198]
[1762996277976,0.03821759,102230.0,102220.0,0.32412198]
[1762996278149,0.01821759,102230.0,102220.0,0.32412198]
[1762996278511,0.01821759,102230.0,102220.0,0.32612198]
[1762996278937,0.01821759,102230.0,102220.0,0.84310518]
[1762996279578,0.01821759,102230.0,102220.0,1.16610518]
[1762996279794,0.01821759,102230.0,102220.0,1.26452553]
[1762996280703,0.20535963,102260.0,102250.0,0.19559902]
[1762996280920,0.24362711,102260.0,102240.0,0.71260135]
[1762996281132,0.24362711,102260.0,102250.0,0.04691]
[1762996281370,0.24362711,102260.0,102250.0,0.084]
[1762996281603,0.03826748,102260.0,102250.0,0.27959902]
[1762996281828,0.03900877,102260.0,102250.0,0.27959902]
[1762996282260,0.23458866,102260.0,102250.0,0.04691]
[1762996283263,0.23458866,102260.0,102250.0,0.27959902]
[1762996283488,0.01900877,102260.0,102250.0,0.79658222]
[1762996283954,0.01900877,102260.0,102250.0,1.16300096]
[1762996284920,0.01900877,102260.0,102250.0,1.16400096]
[1762996285127,0.01900877,102260.0,102250.0,1.26242131]
[1762996286259,0.01900877,102260.0,102250.0,0.74543811]
[1762996286472,0.01900877,102260.0,102250.0,1.26742131]
[1762996287032,0.01900877,102260.0,102250.0,1.26642131]
[1762996287406,0.01900877,102260.0,102250.0,1.27142131]
[1762996289225,0.01900877,102260.0,102250.0,1.36670024]
[1762996293009,0.01900877,102260.0,102250.0,0.84971704]
[1762996293219,0.01900877,102260.0,102250.0,0.70787795]
[1762996293622,0.01900877,102260.0,102250.0,0.75129669]
[1762996294163,0.01900877,102260.0,102250.0,1.26327989]
[1762996294574,0.01900877,102260.0,102250.0,1.26527989]
[1762996294778,0.01900877,102260.0,102250.0,1.35870024]
[1762996295193,0.01900877,102260.0,102250.0,1.36070024]
[1762996296166,0.00074129,102260.0,102250.0,1.36070024]
[1762996296644,8e-05,102270.0,102260.0,0.19557989]
[1762996296846,0.01835246,102270.0,102260.0,1.14470183]
[1762996297000,0.01835246,102270.0,102260.0,1.23283793]
[1762996297824,8e-05,102270.0,102260.0,1.23288475]
[1762996298046,8e-05,102270.0,102260.0,1.23688475]
[1762996298787,8e-05,102270.0,102260.0,1.38338475]
[1762996299295,8e-05,102270.0,102260.0,0.86440155]
[1762996299443,8e-05,102270.0,102260.0,1.38138475]
[1762996299643,8e-05,102270.0,102260.0,1.38438475]
[1762996299844,8e-05,102270.0,102260.0,1.38938475]
[1762996300299,0.002,102300.0,102290.0,0.56194127]
[1762996300499,0.002,102300.0,102290.0,0.72374956]
[1762996300719,0.002,102300.0,102290.0,0.45247874]
[1762996300853,0.002,102300.0,102290.0,0.64800127]
[1762996301525,0.002,102300.0,102290.0,0.65000127]
[1762996301735,0.27469368,102340.0,102290.0,0.65000127]
[1762996301745,0.03916967,102370.0,102320.0,0.05533887]
[1762996301979,0.15176192,102390.0,102380.0,1.50702637]
[1762996302181,8e-05,102410.0,102400.0,0.59673122]
[1762996302367,8e-05,102410.0,102400.0,1.66134731]
[1762996302567,8e-05,102410.0,102400.0,1.65134731]
[1762996302799,8e-05,102410.0,102400.0,1.72543518]
[1762996303009,0.06214941,102450.0,102440.0,0.53823621]
[1762996303184,0.06214941,102450.0,102440.0,0.53828303]
[1762996303390,0.06214941,102450.0,102440.0,0.3430468]
[1762996303391,0.14115782,102450.0,102440.0,0.3430468]
[1762996303600,0.06214941,102450.0,102440.0,0.53828303]
[1762996303806,0.06214941,102450.0,102440.0,0.55412692]
[1762996303807,2.0,102450.0,102440.0,0.55412692]
[1762996304022,2.67583161,102450.0,102440.0,4.682e-05]
[1762996304239,2.87104878,102450.0,102440.0,0.01004681]
[1762996304466,0.0458,102430.0,102420.0,0.20527408]
[1762996304669,0.11062507,102430.0,102420.0,0.19532095]
[1762996304873,0.0456,102430.0,102420.0,0.20532094]
[1762996305080,0.0456,102430.0,102420.0,0.64151862]
[1762996305705,0.6275832,102430.0,102420.0,0.0279656]
[1762996305930,0.11072,102430.0,102420.0,0.22323996]
[1762996306138,2.53931,102440.0,102430.0,0.19525529]
[1762996306334,2.53931,102440.0,102430.0,0.00999999]
[1762996306335,2.05942,102440.0,102430.0,0.00999999]
[1762996306545,2.08511,102440.0,102430.0,0.00999999]
[1762996306760,2.08511,102440.0,102430.0,0.20525528]
[1762996306761,2.0458,102440.0,102430.0,0.20525528]
[1762996306962,0.02011,102440.0,102430.0,0.20525528]
[1762996307600,0.5,102460.0,102440.0,0.20523622]
[1762996307807,2.0,102450.0,102440.0,0.20523622]
[1762996308010,2.00468548,102450.0,102440.0,0.20523622]
[1762996308445,0.00468548,102450.0,102440.0,0.24865496]
[1762996308652,0.00468548,102450.0,102440.0,0.20523622]
[1762996309060,0.03037548,102450.0,102440.0,0.00999999]
[1762996309314,0.06968548,102450.0,102440.0,0.20523622]
[1762996310011,0.06968548,102450.0,102440.0,0.00999999]
[1762996310239,2.0,102440.0,102430.0,0.00999999]
[1762996310478,0.02011,102440.0,102430.0,0.20525528]
[1762996310706,0.02011,102440.0,102430.0,0.00999999]
[1762996310930,2.0,102430.0,102420.0,1.03530442]
[1762996311157,2.0,102430.0,102420.0,0.56173996]
[1762996311363,2.0,102430.0,102420.0,1.08872315]
[1762996311583,0.02011,102440.0,102430.0,0.20525528]
[1762996312322,2.28034623,102440.0,102430.0,0.00999999]
[1762996312539,2.28034623,102440.0,102420.0,0.19532094]
[1762996312764,0.02569,102430.0,102420.0,0.01004685]
[1762996312995,0.065,102430.0,102420.0,0.20532121]
[1762996313691,0.02011,102440.0,102430.0,0.20525528]
[1762996315049,0.53931,102450.0,102440.0,0.19523623]
[1762996315248,2.0,102460.0,102450.0,0.19521716]
[1762996315364,0.065,102450.0,102440.0,0.20523622]
[1762996316015,0.26021717,102450.0,102440.0,0.00999999]
[1762996316416,0.26490265,102450.0,102440.0,0.00999999]
[1762996317582,2.26490265,102450.0,102440.0,0.00999999]
[1762996318473,2.06968548,102450.0,102440.0,0.00999999]
[1762996318674,2.26490265,102450.0,102440.0,0.00999999]
[1762996319372,0.32919582,102470.0,102440.0,0.36764828]
[1762996319589,1e-08,102470.0,102460.0,1.09860004]
[1762996319814,1e-08,102470.0,102460.0,1.66444785]
[1762996320034,1e-08,102470.0,102460.0,1.14746465]
[1762996320265,1e-08,102470.0,102460.0,1.12746466]
[1762996320497,1e-08,102470.0,102460.0,1.13746466]
[1762996320715,1e-08,102470.0,102460.0,1.14746465]
[1762996320940,1e-08,102470.0,102460.0,1.14751151]
[1762996321181,0.00040895,102480.0,102470.0,0.25859779]
[1762996321182,1e-08,102480.0,102470.0,0.25859779]
[1762996321399,10.02760069,102500.0,102490.0,0.24855971]
[1762996321616,10.02760069,102500.0,102490.0,0.76554291]
[1762996322343,10.02760069,102500.0,102490.0,0.86082184]
[1762996323635,10.02760069,102500.0,102490.0,0.24855971]
[1762996323837,10.02760069,102500.0,102490.0,0.86082184]
[1762996324242,10.02760069,102500.0,102490.0,0.8174031]
[1762996325518,10.02883197,102500.0,102490.0,0.8174031]
[1762996325934,10.02883197,102500.0,102490.0,0.86082184]
[1762996327690,10.02883197,102500.0,102490.0,0.34383864]
[1762996327915,10.02883197,102500.0,102490.0,0.78587375]
[1762996327916,6.45856466,102500.0,102490.0,0.78587375]
[1762996328129,4.91469449,102500.0,102490.0,2.02506247]
[1762996328354,4.51662066,102500.0,102490.0,2.52322083]
[1762996328559,4.1757232,102500.0,102490.0,2.5932675]
[1762996328762,3.86175188,102500.0,102490.0,2.5932675]
[1762996328981,2.83632239,102500.0,102490.0,2.85042822]
[1762996329187,1.63663747,102500.0,102490.0,4.90503879]
[1762996329394,1.2662698,102500.0,102490.0,4.90503879]
[1762996329592,1.11980798,102500.0,102490.0,4.99259713]
[1762996329800,1.09054466,102500.0,102490.0,4.99259713]
[1762996330007,0.62068412,102500.0,102490.0,4.99259713]
[1762996330207,2.0,102630.0,102610.0,0.00999999]
[1762996330665,0.09527893,102620.0,102610.0,0.00999999]
[1762996330895,0.29017271,102620.0,102610.0,0.00999999]
[1762996331351,0.09575127,102620.0,102610.0,0.00999999]
[1762996332297,0.29064505,102620.0,102610.0,0.00999999]
[1762996333001,0.19536612,102620.0,102610.0,0.00999999]
[1762996333623,0.00047234,102620.0,102610.0,0.65556355]
[1762996333830,0.00047234,102620.0,102610.0,0.00999999]
[1762996334723,0.00047234,102620.0,102610.0,0.85047632]
[1762996335617,0.00047234,102620.0,102610.0,0.89389506]
[1762996336020,0.00047234,102620.0,102610.0,0.69898229]
[1762996336232,0.03770234,102620.0,102610.0,0.00999999]
[1762996336450,0.25491216,102620.0,102600.0,0.64556356]
[1762996336615,0.32787666,102620.0,102610.0,0.00999999]
[1762996337198,0.37459666,102620.0,102610.0,0.00999999]
[1762996337409,0.94744146,102640.0,102630.0,0.00999999]
[1762996337623,2.94744146,102640.0,102630.0,0.01004685]
[1762996338032,2.4675379,102640.0,102630.0,0.01004685]
[1762996338293,3.11310146,102640.0,102630.0,0.01004685]
[1762996338498,3.06642146,102640.0,102630.0,0.01004685]
[1762996338709,3.04084146,102640.0,102630.0,0.01004685]
[1762996338910,2.3485579,102640.0,102630.0,0.01004685]
[1762996339113,2.99412146,102640.0,102630.0,0.01004685]
[1762996339878,3.04080146,102640.0,102630.0,0.01004685]
[1762996340096,3.13306146,102640.0,102630.0,0.01004685]
[1762996340702,3.54948181,102640.0,102630.0,4.686e-05]
[1762996340958,3.45106146,102640.0,102630.0,4.686e-05]
[1762996341188,3.12802146,102640.0,102630.0,4.686e-05]
[1762996341407,2.02,102640.0,102630.0,0.01004685]
[1762996341622,0.97290931,102650.0,102640.0,0.00999999]
[1762996341826,3.09176931,102650.0,102640.0,0.00999999]
[1762996342026,3.15848931,102650.0,102640.0,0.00999999]
[1762996342238,0.02368753,102650.0,102640.0,0.00999999]
[1762996342442,0.02368753,102650.0,102640.0,0.20485579]
[1762996342443,0.00368753,102650.0,102640.0,0.20485579]
[1762996342645,0.00368753,102650.0,102640.0,0.00999999]
[1762996343243,0.00368753,102650.0,102640.0,0.20485579]
[1762996343574,0.04552753,102660.0,102640.0,0.20485275]
[1762996343775,0.93564136,102670.0,102660.0,0.00999999]
[1762996344026,2.0,102670.0,102660.0,0.00999999]
[1762996344253,0.24163887,102670.0,102660.0,0.00999999]
[1762996344438,0.33740902,102670.0,102660.0,0.00999999]
[1762996344883,0.00049122,102670.0,102660.0,0.00999999]
[1762996345012,0.98297258,102670.0,102660.0,0.00999999]
[1762996345437,0.33740902,102670.0,102660.0,0.00999999]
[1762996345644,0.33736902,102670.0,102660.0,0.00999999]
[1762996345841,0.00049122,102670.0,102660.0,0.03549002]
[1762996346042,0.00049122,102670.0,102660.0,0.00999999]
[1762996346450,0.09577015,102670.0,102660.0,0.00999999]
[1762996346649,0.09577015,102670.0,102660.0,0.08461999]
[1762996346888,0.00049122,102670.0,102660.0,0.27943783]
[1762996348074,0.00049122,102670.0,102660.0,0.08461999]
[1762996348749,0.00049122,102670.0,102660.0,0.27943783]
[1762996348957,0.24205009,102670.0,102660.0,0.08461999]
[1762996349164,0.00049122,102670.0,102660.0,0.08461999]
[1762996349371,0.00049122,102670.0,102660.0,0.30920916]
[1762996349573,0.00049122,102670.0,102660.0,0.30740483]
[1762996349862,0.00049122,102670.0,102660.0,0.08461999]
[1762996350062,0.00049122,102670.0,102660.0,0.07462]
[1762996350429,0.24201009,102670.0,102660.0,0.03731]
[1762996350855,0.24201009,102670.0,102650.0,0.01866]
[1762996351004,0.24151887,102670.0,102650.0,0.01866]
[1762996351213,1.00347243,102670.0,102660.0,0.00999999]
[1762996351437,0.90708243,102670.0,102660.0,0.00999999]
[1762996351652,0.97243243,102670.0,102660.0,0.00999999]
[1762996352099,1.06882243,102670.0,102660.0,0.00999999]
[1762996352314,1.04882243,102670.0,102660.0,0.00999999]
[1762996352468,1.06882243,102670.0,102660.0,0.00999999]
[1762996352871,0.194831,102660.0,102640.0,0.02865999]
[1762996353078,0.14195893,102650.0,102640.0,0.22351579]
[1762996353479,0.14195893,102650.0,102640.0,0.26082579]
[1762996353862,0.14195893,102650.0,102640.0,0.29813579]
[1762996354055,0.14195893,102650.0,102640.0,0.26082579]
[1762996354760,0.14195893,102650.0,102640.0,0.06596999]
[1762996354949,0.14195893,102650.0,102640.0,0.01866]
[1762996354950,0.38303575,102650.0,102640.0,0.01866]
[1762996355089,0.18819893,102650.0,102640.0,0.02865999]
[1762996355304,0.18819893,102650.0,102630.0,0.25256816]
[1762996355305,1.21033999,102650.0,102630.0,0.02038592]
[1762996355520,0.40170575,102650.0,102640.0,0.00999999]
[1762996355832,0.1948558,102640.0,102630.0,0.03038591]
[1762996356053,0.06624,102650.0,102630.0,0.02038592]
[1762996356264,0.00024563,102660.0,102650.0,0.00999999]
[1762996356575,0.00024563,102660.0,102650.0,0.04730999]
[1762996356945,0.00024563,102660.0,102650.0,0.03731]
[1762996357144,0.00024563,102660.0,102650.0,0.04730999]
[1762996357507,0.00024563,102660.0,102650.0,0.26261744]
[1762996357645,0.00024563,102660.0,102650.0,0.06778062]
[1762996358087,0.00024563,102660.0,102650.0,0.02047063]
[1762996358088,0.84062703,102660.0,102650.0,0.02047063]
[1762996358490,1.00236703,102660.0,102650.0,0.02047063]
[1762996358869,1.02236703,102660.0,102650.0,0.03047062]
[1762996359090,3.02236703,102660.0,102650.0,0.03047062]
[1762996359287,1.02236703,102660.0,102650.0,0.03047062]
[1762996359939,1.02236703,102660.0,102650.0,0.00999999]
[1762996360087,1.00236703,102660.0,102650.0,0.00999999]
[1762996360495,0.1948558,102640.0,102630.0,0.02539754]
[1762996360695,0.2875758,102640.0,102630.0,0.04590096]
[1762996360890,0.2875758,102640.0,102630.0,0.05590095]
[1762996360891,1.09487936,102640.0,102630.0,0.05590095]
[1762996361096,1.09487936,102640.0,102630.0,0.02055028]
[1762996361300,1.09487936,102640.0,102630.0,0.03055027]
[1762996361524,3.09487936,102640.0,102630.0,0.01004685]
[1762996361726,3.10483936,102640.0,102630.0,0.01004685]
[1762996362294,3.10483936,102640.0,102630.0,4.686e-05]
[1762996362500,2.4228358,102640.0,102630.0,0.01004685]
[1762996362678,0.4693158,102640.0,102630.0,0.01004685]
[1762996362936,3.11487936,102640.0,102630.0,0.01004685]
[1762996363562,3.11487936,102640.0,102630.0,4.686e-05]
[1762996363775,3.11487936,102640.0,102630.0,0.01004685]
[1762996363976,0.4693158,102640.0,102630.0,0.01004685]
[1762996364129,1.11487936,102640.0,102630.0,0.01004685]
[1762996364330,0.3528458,102640.0,102630.0,0.01004685]
[1762996364531,1.09479936,102640.0,102630.0,0.01004685]
[1762996364775,0.98193829,102640.0,102630.0,0.01004685]
[1762996364985,0.98193829,102640.0,102630.0,0.03057116]
[1762996364986,0.2874558,102640.0,102630.0,0.03057116]
[1762996365363,0.2874558,102640.0,102630.0,0.01004685]
[1762996365563,1.19003829,102640.0,102630.0,0.01004685]
[1762996365768,1.09364829,102640.0,102630.0,0.01004685]
[1762996366012,0.89879249,102640.0,102630.0,0.01004685]
[1762996366384,0.89879249,102640.0,102630.0,0.22544071]
[1762996366385,0.18787893,102640.0,102630.0,0.22544071]
[1762996366688,0.18787893,102640.0,102630.0,0.03056592]
[1762996366901,1.09364829,102640.0,102630.0,0.03056592]
[1762996367102,0.18787893,102640.0,102630.0,0.22544071]
[1762996367322,0.18787893,102640.0,102630.0,0.03056592]
[1762996367535,0.38273473,102640.0,102630.0,0.03056592]
[1762996367775,0.54447473,102640.0,102630.0,0.03056592]
[1762996368219,0.54447473,102640.0,102630.0,0.02056593]
[1762996368438,1.21003829,102640.0,102630.0,0.02056593]
[1762996368678,0.54447473,102640.0,102630.0,0.03056592]
[1762996368901,0.44808473,102640.0,102630.0,0.03056592]
[1762996369197,0.18787893,102640.0,102630.0,0.03056592]
[1762996369415,0.14155893,102640.0,102630.0,0.03056592]
[1762996369632,0.33641473,102640.0,102630.0,0.03056592]
[1762996370292,0.14155893,102640.0,102630.0,0.03056592]
[1762996370764,0.04628,102640.0,102630.0,0.26275071]
[1762996371243,0.14155893,102640.0,102630.0,0.06787592]
[1762996371896,1.14371829,102640.0,102630.0,0.03056592]
[1762996372097,1.09743829,102640.0,102630.0,0.02056593]
[1762996372334,0.49811473,102640.0,102630.0,0.02056593]
[1762996372543,0.49811473,102640.0,102630.0,0.03056592]
[1762996372966,0.49811473,102640.0,102630.0,0.02056593]
[1762996373215,1.14367829,102640.0,102630.0,0.02056593]
[1762996373389,1.19184632,102640.0,102630.0,4.686e-05]
[1762996373822,0.06535,102600.0,102590.0,0.03686564]
[1762996374032,0.19496977,102580.0,102550.0,0.03736]
[1762996374243,0.00974943,102570.0,102550.0,0.02103481]
[1762996374442,0.04624,102560.0,102550.0,0.02103481]
[1762996374652,0.2876878,102560.0,102550.0,0.00047234]
[1762996374861,0.4494278,102560.0,102550.0,0.00047234]
[1762996375266,1.11499136,102560.0,102550.0,0.00047234]
[1762996375799,3.21341171,102560.0,102550.0,0.00047234]
[1762996376293,0.29034378,102530.0,102520.0,0.0004]
[1762996376536,1.06816912,102530.0,102520.0,0.0004]
[1762996376739,1.16455912,102530.0,102520.0,0.0004]
[1762996377658,0.33725556,102530.0,102520.0,0.0004]
[1762996378494,0.98281912,102530.0,102520.0,0.0004]
[1762996378741,1.14455912,102530.0,102520.0,0.0004]
[1762996379148,1.20047007,102530.0,102520.0,0.0004]
[1762996379921,1.20043007,102530.0,102520.0,0.0004]
[1762996380166,0.45255556,102530.0,102520.0,0.0004]
[1762996380376,0.33721556,102530.0,102520.0,0.0004]
[1762996380579,0.98277912,102530.0,102520.0,0.0004]
[1762996380738,0.14215071,102530.0,102520.0,0.0004]
[1762996380943,0.00047178,102530.0,102520.0,0.07512]
[1762996381143,0.00047178,102530.0,102520.0,0.27020388]
[1762996381945,0.33673957,102550.0,102520.0,0.27020388]
[1762996382172,0.29033957,102550.0,102530.0,0.19506465]
[1762996382425,0.29033957,102550.0,102520.0,0.19553075]
[1762996382598,0.29033957,102550.0,102520.0,0.23289075]
[1762996382799,0.1950465,102540.0,102520.0,0.23289075]
[1762996382997,0.1950465,102540.0,102520.0,0.03780687]
[1762996382998,0.19505132,102540.0,102520.0,0.03780687]
[1762996383198,0.32009091,102550.0,102520.0,0.2328887]
[1762996383529,0.19504703,102540.0,102520.0,0.2328887]
[1762996383753,0.19504593,102540.0,102520.0,0.2328887]
[1762996384035,0.19504817,102540.0,102520.0,0.2328887]
[1762996384190,0.19504791,102540.0,102520.0,0.2328887]
[1762996384393,0.94565447,102550.0,102530.0,0.03736]
[1762996384734,0.94565447,102550.0,102520.0,0.00044687]
[1762996384735,0.19504583,102540.0,102520.0,0.00044687]
[1762996384961,0.96565447,102550.0,102520.0,0.23288744]
[1762996385174,0.19504594,102540.0,102520.0,0.23288744]
[1762996385374,0.29034378,102530.0,102520.0,0.03780687]
[1762996385574,0.09527893,102530.0,102520.0,0.00044687]
[1762996385692,0.09527893,102530.0,102520.0,0.23289075]
[1762996385912,0.30009091,102550.0,102530.0,0.19506376]
[1762996386115,0.09527893,102550.0,102530.0,0.19506376]
[1762996386326,0.09527893,102550.0,102540.0,0.23240583]
[1762996386528,0.09527893,102560.0,102540.0,0.26976583]
[1762996386828,0.29028673,102560.0,102550.0,0.05602]
[1762996387030,0.09527893,102560.0,102550.0,0.25104681]
[1762996387231,0.09527893,102560.0,102550.0,0.28840681]
[1762996387443,1.08243074,102580.0,102560.0,0.19500751]
[1762996387444,0.29999718,102580.0,102560.0,0.19500751]
[1762996387660,0.2999993,102580.0,102560.0,0.26972751]
[1762996388087,0.29999852,102580.0,102560.0,0.26972751]
[1762996388289,0.09527893,102580.0,102560.0,0.26972751]
[1762996388547,0.85032577,102600.0,102570.0,0.26970871]
[1762996388755,0.09527893,102590.0,102570.0,0.26970871]
[1762996388867,0.71847324,102600.0,102580.0,0.23232977]
[1762996389073,0.8502749,102610.0,102590.0,0.03736]
[1762996389315,0.8040349,102610.0,102590.0,0.26966963]
[1762996389522,0.09527893,102610.0,102590.0,0.26966963]
[1762996389719,0.09527893,102610.0,102600.0,0.23229177]
[1762996390129,0.76473033,102620.0,102600.0,0.03736]
[1762996390344,0.09527893,102610.0,102600.0,0.07472]
[1762996390751,0.09527893,102610.0,102600.0,0.09342]
[1762996390961,0.2901917,102610.0,102600.0,0.09346687]
[1762996391161,0.24113523,102620.0,102600.0,0.09346687]
[1762996391362,0.24113523,102620.0,102610.0,0.03736]
[1762996391363,0.29017416,102620.0,102610.0,0.03736]
[1762996391563,0.09527893,102620.0,102610.0,0.07472]
[1762996391793,0.19489378,102620.0,102610.0,0.03736]
[1762996392049,0.19491277,102610.0,102600.0,0.01874687]
[1762996392233,0.8582938,102610.0,102600.0,4.687e-05]
[1762996392433,0.8582938,102610.0,102600.0,0.03740687]
[1762996392434,0.19491277,102610.0,102600.0,0.03740687]
[1762996393201,0.19491277,102610.0,102600.0,4.687e-05]
[1762996393735,0.00024563,102660.0,102650.0,0.19483682]
[1762996394092,0.00024563,102660.0,102650.0,0.09947874]
[1762996394295,0.00024563,102660.0,102650.0,0.65054977]
[1762996394634,0.00024563,102660.0,102650.0,0.84538659]
[1762996394842,0.000718,102660.0,102650.0,0.84538659]
[1762996395278,0.19478087,102680.0,102650.0,0.81776843]
[1762996395483,0.19478087,102680.0,102670.0,0.03736]
[1762996395888,0.19478087,102680.0,102670.0,0.07472]
[1762996396237,0.34931,102710.0,102680.0,0.19477921]
[1762996396439,0.1947242,102710.0,102700.0,0.05602]
[1762996397747,0.34923928,102710.0,102700.0,4.687e-05]
[1762996398309,0.86295031,102710.0,102700.0,4.687e-05]
[1762996398692,0.34923928,102710.0,102700.0,0.01870687]
[1762996399353,0.34923928,102710.0,102700.0,0.01495671]
[1762996399563,0.36923928,102710.0,102700.0,0.01495671]
[1762996399740,0.19476093,102690.0,102670.0,0.03366]
[1762996399941,0.19476093,102690.0,102670.0,0.54741791]
[1762996400153,0.19476093,102690.0,102670.0,0.03370688]
[1762996400154,0.19477989,102680.0,102670.0,0.03370688]
[1762996400288,0.33955882,102680.0,102670.0,4.688e-05]
[1762996400489,0.89986985,102680.0,102670.0,4.688e-05]
[1762996400720,1.05478985,102680.0,102670.0,4.688e-05]
[1762996400894,0.19477989,102680.0,102670.0,4.688e-05]
[1762996401098,0.19477989,102680.0,102670.0,0.03370688]
[1762996401100,0.19527104,102680.0,102670.0,0.03370688]
[1762996401571,0.75848207,102680.0,102670.0,4.688e-05]
[1762996401776,0.84903207,102680.0,102670.0,4.688e-05]
[1762996403393,0.00049115,102680.0,102670.0,0.06736688]
[1762996403751,0.19527104,102680.0,102670.0,0.06736688]
[1762996404374,0.19527104,102680.0,102670.0,0.03370688]
[1762996405247,0.19527104,102680.0,102670.0,4.688e-05]
[1762996405932,0.24477104,102680.0,102670.0,4.688e-05]
[1762996406346,0.75848207,102680.0,102670.0,4.688e-05]
[1762996406552,0.95992207,102680.0,102670.0,4.688e-05]
[1762996406762,0.97992207,102680.0,102670.0,4.688e-05]
[1762996406969,1.07834242,102680.0,102670.0,4.688e-05]
[1762996407153,0.97992207,102680.0,102670.0,4.688e-05]
[1762996407806,0.24477104,102680.0,102670.0,4.688e-05]
[1762996408024,0.86937207,102680.0,102670.0,4.688e-05]
[1762996408233,0.95992207,102680.0,102670.0,4.688e-05]
[1762996408415,0.97992207,102680.0,102670.0,4.688e-05]
[1762996408987,0.80500207,102680.0,102670.0,4.688e-05]
[1762996409392,0.95992207,102680.0,102670.0,4.688e-05]
[1762996409593,0.97992207,102680.0,102670.0,4.688e-05]
[1762996410360,0.91255207,102680.0,102670.0,4.688e-05]
[1762996410607,2.97883801,102680.0,102670.0,4.688e-05]
[1762996410811,2.93255207,102680.0,102670.0,4.688e-05]
[1762996411332,3.7692631,102680.0,102670.0,4.688e-05]
[1762996411583,0.74184104,102680.0,102670.0,4.688e-05]
[1762996411755,1.25555207,102680.0,102670.0,4.688e-05]
[1762996411956,3.7692631,102680.0,102670.0,4.688e-05]
[1762996412156,3.25555207,102680.0,102670.0,4.688e-05]
[1762996413096,3.7692631,102680.0,102670.0,4.688e-05]
[1762996413271,3.25555207,102680.0,102670.0,4.688e-05]
[1762996414400,2.74184104,102680.0,102670.0,4.688e-05]
[1762996414787,3.25547207,102680.0,102670.0,4.688e-05]
[1762996415607,2.74176104,102680.0,102670.0,4.688e-05]
[1762996415819,0.72176104,102680.0,102670.0,4.688e-05]
[1762996416024,1.23547207,102680.0,102670.0,4.688e-05]
[1762996416433,3.25547207,102680.0,102670.0,4.688e-05]
[1762996416582,2.74176104,102680.0,102670.0,4.688e-05]
[1762996416788,3.25547207,102680.0,102670.0,4.688e-05]
[1762996416998,0.72176104,102680.0,102670.0,4.688e-05]
[1762996417230,0.24167104,102680.0,102670.0,4.688e-05]
[1762996417431,0.82124207,102680.0,102670.0,4.688e-05]
[1762996417640,2.93247207,102680.0,102670.0,4.688e-05]
[1762996418046,2.41876104,102680.0,102670.0,4.688e-05]
[1762996418463,2.93247207,102680.0,102670.0,4.688e-05]
[1762996420043,3.25547207,102680.0,102670.0,4.688e-05]
[1762996420258,3.27363036,102680.0,102670.0,4.688e-05]
[1762996420479,3.37205071,102680.0,102670.0,4.688e-05]
[1762996420892,3.88576174,102680.0,102670.0,4.688e-05]
[1762996421207,3.37205071,102680.0,102670.0,4.688e-05]
[1762996421552,3.78734139,102680.0,102670.0,4.688e-05]
[1762996421738,3.27363036,102680.0,102670.0,4.688e-05]
[1762996421935,3.78734139,102680.0,102670.0,4.688e-05]
[1762996422191,3.78736079,102680.0,102670.0,4.688e-05]
[1762996423343,0.19489378,102620.0,102610.0,0.03366188]
[1762996423558,0.19491277,102610.0,102600.0,0.03366188]
[1762996423739,0.19491277,102610.0,102600.0,0.06779425]
[1762996423965,0.19491277,102610.0,102600.0,0.03413237]
[1762996424594,0.19489378,102620.0,102600.0,0.03413237]
[1762996424801,0.19489378,102620.0,102610.0,0.03366]
[1762996425138,0.20461852,102630.0,102610.0,0.06732]
[1762996425323,0.20461852,102630.0,102620.0,0.03366]
[1762996427151,0.19491277,102610.0,102600.0,0.00047237]
[1762996427480,0.19491277,102610.0,102600.0,0.03413237]
[1762996428164,0.19491277,102610.0,102600.0,0.00047237]
[1762996428303,0.8857138,102610.0,102600.0,0.00047237]
[1762996428715,0.26077277,102610.0,102600.0,0.00047237]
[1762996428917,0.7744838,102610.0,102600.0,0.00047237]
[1762996429305,0.8657138,102610.0,102600.0,0.00047237]
[1762996429517,1.0023085,102610.0,102600.0,1e-08]
[1762996429724,2.39017712,102610.0,102600.0,1e-08]
[1762996429932,2.90388815,102610.0,102600.0,1e-08]
[1762996430740,3.22688815,102610.0,102600.0,1e-08]
[1762996431179,3.74059918,102610.0,102600.0,1e-08]
[1762996431383,3.22688815,102610.0,102600.0,1e-08]
[1762996431584,3.3253085,102610.0,102600.0,1e-08]
[1762996432234,3.22688815,102610.0,102600.0,1e-08]
[1762996434468,3.74059918,102610.0,102600.0,1e-08]
[1762996436299,3.22688815,102610.0,102600.0,1e-08]